[Event "*** SCC Grand Prix: Titled Tuesday Blitz"]
[Site "Chess.com"]
[Date "2020.08.25"]
[Round "10"]
[White "AldokhinIvan"]
[Black "KaterinaMiroshnik"]
[Result "0-1"]
[WhiteElo "2530"]
[BlackElo "2452"]
[TimeControl "180+1"]
[EndTime "12:00:24 PDT"]
[Termination "KaterinaMiroshnik won by checkmate"]

1. d4 {[%clk 0:02:55.4]} 1... e6 {[%clk 0:02:51.9]} 2. c4 {[%clk 0:02:54.6]}
2... Nf6 {[%clk 0:02:52.8]} 3. Nc3 {[%clk 0:02:54.8]} 3... Bb4 {[%clk
0:02:53.2]} 4. e3 {[%clk 0:02:55.2]} 4... O-O {[%clk 0:02:53]} 5. Ne2 {[%clk
0:02:55.5]} 5... d5 {[%clk 0:02:53.4]} 6. a3 {[%clk 0:02:55.9]} 6... Be7 {[%clk
0:02:53.3]} 7. cxd5 {[%clk 0:02:56.1]} 7... exd5 {[%clk 0:02:52.9]} 8. b4 {[%clk
0:02:56.1]} 8... a5 {[%clk 0:02:52.5]} 9. Rb1 {[%clk 0:02:54.2]} 9... axb4
{[%clk 0:02:52.3]} 10. axb4 {[%clk 0:02:54]} 10... c6 {[%clk 0:02:52.8]} 11. Ng3
{[%clk 0:02:54]} 11... b5 {[%clk 0:02:51.6]} 12. Bd3 {[%clk 0:02:54.3]} 12...
Na6 {[%clk 0:02:51.4]} 13. Na2 {[%clk 0:02:42.5]} 13... Nc7 {[%clk 0:02:50.9]}
14. Qc2 {[%clk 0:02:39]} 14... Ra6 {[%clk 0:02:45.4]} 15. O-O {[%clk 0:02:36.2]}
15... g6 {[%clk 0:02:42.1]} 16. f3 {[%clk 0:02:33.9]} 16... Bd6 {[%clk
0:02:39.3]} 17. Nc3 {[%clk 0:02:29.2]} 17... Qe7 {[%clk 0:02:33.9]} 18. Qb3
{[%clk 0:02:20.7]} 18... Be6 {[%clk 0:02:27.1]} 19. Nce2 {[%clk 0:02:20.7]}
19... h5 {[%clk 0:02:25.6]} 20. Rd1 {[%clk 0:02:11.2]} 20... Ra4 {[%clk
0:02:25]} 21. Bd2 {[%clk 0:02:08.3]} 21... Rfa8 {[%clk 0:02:23.9]} 22. Rdc1
{[%clk 0:01:53.6]} 22... Bd7 {[%clk 0:02:17.2]} 23. Qd1 {[%clk 0:01:29.3]} 23...
Bxb4 {[%clk 0:02:08.2]} 24. e4 {[%clk 0:01:28.7]} 24... Bxd2 {[%clk 0:02:00]}
25. Qxd2 {[%clk 0:01:25.8]} 25... Ra2 {[%clk 0:01:55.9]} 26. Qf4 {[%clk
0:01:15.4]} 26... Ne6 {[%clk 0:01:47.3]} 27. Qh6 {[%clk 0:00:54.4]} 27... dxe4
{[%clk 0:01:35]} 28. Bxe4 {[%clk 0:00:51.8]} 28... Nxe4 {[%clk 0:01:26.9]} 29.
fxe4 {[%clk 0:00:48.8]} 29... h4 {[%clk 0:01:24.8]} 30. d5 {[%clk 0:00:27.6]}
30... cxd5 {[%clk 0:01:15.8]} 31. exd5 {[%clk 0:00:27.2]} 31... Ng7 {[%clk
0:01:12.4]} 32. Nc3 {[%clk 0:00:17]} 32... hxg3 {[%clk 0:01:05.8]} 33. Nxa2
{[%clk 0:00:16.5]} 33... Rxa2 {[%clk 0:01:03.9]} 34. hxg3 {[%clk 0:00:16.6]}
34... Qe2 {[%clk 0:01:00.5]} 35. Qh2 {[%clk 0:00:13.5]} 35... Nf5 {[%clk
0:00:48.2]} 36. Rc3 {[%clk 0:00:12.2]} 36... Qe5 {[%clk 0:00:36.2]} 37. Rf3
{[%clk 0:00:08.3]} 37... Qxd5 {[%clk 0:00:32.6]} 38. g4 {[%clk 0:00:08.8]} 38...
Nd4 {[%clk 0:00:27.5]} 39. Qb8+ {[%clk 0:00:08.5]} 39... Kg7 {[%clk 0:00:27.4]}
40. Rh3 {[%clk 0:00:08.3]} 40... Ne2+ {[%clk 0:00:14]} 41. Kh1 {[%clk
0:00:03.6]} 41... Kf6 {[%clk 0:00:12.3]} 42. Qh8+ {[%clk 0:00:03.9]} 42... Ke7
{[%clk 0:00:12.6]} 43. Re3+ {[%clk 0:00:02.1]} 43... Be6 {[%clk 0:00:13.1]} 44.
Re1 {[%clk 0:00:01.8]} 44... Ng3+ {[%clk 0:00:12.6]} 45. Kh2 {[%clk 0:00:01.5]}
45... Qxg2# {[%clk 0:00:13]} 0-1

[Event "*** SCC Grand Prix: Titled Tuesday Blitz"]
[Site "Chess.com"]
[Date "2020.08.25"]
[Round "10"]
[White "dretch"]
[Black "vinniethepooh"]
[Result "1-0"]
[WhiteElo "2771"]
[BlackElo "2674"]
[TimeControl "180+1"]
[EndTime "12:00:27 PDT"]
[Termination "dretch won on time"]

1. d4 {[%clk 0:03:00.9]} 1... Nf6 {[%clk 0:03:00]} 2. c4 {[%clk 0:03:01.2]} 2...
e6 {[%clk 0:03:00.5]} 3. Nc3 {[%clk 0:03:01.5]} 3... Bb4 {[%clk 0:02:59.9]} 4.
Qc2 {[%clk 0:03:01.6]} 4... d6 {[%clk 0:02:56.1]} 5. e3 {[%clk 0:02:53.6]} 5...
O-O {[%clk 0:02:54.5]} 6. Bd3 {[%clk 0:02:50.2]} 6... c5 {[%clk 0:02:55]} 7. Ne2
{[%clk 0:02:48.9]} 7... Nc6 {[%clk 0:02:36.3]} 8. O-O {[%clk 0:02:46]} 8... e5
{[%clk 0:02:35]} 9. d5 {[%clk 0:02:40.7]} 9... Ne7 {[%clk 0:02:33.7]} 10. f4
{[%clk 0:02:26]} 10... Ng6 {[%clk 0:02:20.8]} 11. f5 {[%clk 0:02:22.6]} 11...
Ne7 {[%clk 0:02:19.5]} 12. Ne4 {[%clk 0:02:16]} 12... Nxe4 {[%clk 0:02:11]} 13.
Bxe4 {[%clk 0:02:16.9]} 13... f6 {[%clk 0:02:10.9]} 14. g4 {[%clk 0:02:13]}
14... g6 {[%clk 0:02:02.3]} 15. Ng3 {[%clk 0:02:11.5]} 15... Kh8 {[%clk
0:01:52.8]} 16. h3 {[%clk 0:02:00.8]} 16... gxf5 {[%clk 0:01:31.4]} 17. Nxf5
{[%clk 0:01:59.6]} 17... Bxf5 {[%clk 0:01:31.2]} 18. Bxf5 {[%clk 0:02:00.5]}
18... Nxf5 {[%clk 0:01:28.9]} 19. Rxf5 {[%clk 0:02:00.1]} 19... Qe7 {[%clk
0:01:29.5]} 20. e4 {[%clk 0:01:50.8]} 20... Rg8 {[%clk 0:01:25.2]} 21. Be3
{[%clk 0:01:48.9]} 21... Rg6 {[%clk 0:01:22.6]} 22. Raf1 {[%clk 0:01:42.6]}
22... Ba5 {[%clk 0:01:18]} 23. Kh2 {[%clk 0:01:29.5]} 23... Rag8 {[%clk
0:01:14.8]} 24. Bf2 {[%clk 0:01:26.1]} 24... Bd8 {[%clk 0:01:01.8]} 25. Bh4
{[%clk 0:01:23.1]} 25... Qg7 {[%clk 0:01:02.3]} 26. Qf2 {[%clk 0:01:19.6]} 26...
Rf8 {[%clk 0:00:27.3]} 27. g5 {[%clk 0:00:58.8]} 27... Rf7 {[%clk 0:00:27.3]}
28. gxf6 {[%clk 0:00:55.6]} 28... Qh6 {[%clk 0:00:26.7]} 29. Rg1 {[%clk
0:00:42.7]} 29... Rxg1 {[%clk 0:00:25.9]} 30. Kxg1 {[%clk 0:00:42.4]} 30... a6
{[%clk 0:00:22.9]} 31. Kh2 {[%clk 0:00:31.8]} 31... b5 {[%clk 0:00:18]} 32. b3
{[%clk 0:00:30.2]} 32... b4 {[%clk 0:00:17.8]} 33. Bg5 {[%clk 0:00:27.7]} 33...
Qg6 {[%clk 0:00:18.1]} 34. Qh4 {[%clk 0:00:26.4]} 34... a5 {[%clk 0:00:15.5]}
35. Qg4 {[%clk 0:00:19]} 35... Bxf6 {[%clk 0:00:10.9]} 36. Qf3 {[%clk
0:00:10.3]} 36... Kg7 {[%clk 0:00:08]} 37. Be3 {[%clk 0:00:10.4]} 37... Kg8
{[%clk 0:00:06.7]} 38. Qg4 {[%clk 0:00:10]} 38... Kg7 {[%clk 0:00:05.1]} 39. Kg3
{[%clk 0:00:09.6]} 39... Qxg4+ {[%clk 0:00:04.2]} 40. Kxg4 {[%clk 0:00:07.3]}
40... Be7 {[%clk 0:00:04.3]} 41. Rxf7+ {[%clk 0:00:06.7]} 41... Kxf7 {[%clk
0:00:05.2]} 42. Kf5 {[%clk 0:00:07.6]} 42... Bd8 {[%clk 0:00:03.4]} 43. Bh6
{[%clk 0:00:07]} 43... Be7 {[%clk 0:00:03.2]} 44. Bg5 {[%clk 0:00:06.8]} 44...
Bxg5 {[%clk 0:00:01.9]} 45. Kxg5 {[%clk 0:00:07.7]} 45... Kg7 {[%clk 0:00:02.5]}
46. h4 {[%clk 0:00:07.5]} 46... h6+ {[%clk 0:00:02.7]} 47. Kf5 {[%clk
0:00:07.1]} 47... Kf7 {[%clk 0:00:03.1]} 48. h5 {[%clk 0:00:07.7]} 48... Ke7
{[%clk 0:00:02]} 49. Kg6 {[%clk 0:00:08]} 49... Kf8 {[%clk 0:00:01.6]} 50. Kf6
{[%clk 0:00:07.7]} 1-0

[Event "*** SCC Grand Prix: Titled Tuesday Blitz"]
[Site "Chess.com"]
[Date "2020.08.25"]
[Round "10"]
[White "Euge_chess"]
[Black "Spriteball"]
[Result "0-1"]
[WhiteElo "2077"]
[BlackElo "2234"]
[TimeControl "180+1"]
[EndTime "12:00:29 PDT"]
[Termination "Spriteball won on time"]

1. e4 {[%clk 0:03:00.9]} 1... c5 {[%clk 0:02:59.3]} 2. c3 {[%clk 0:03:00]} 2...
d5 {[%clk 0:02:57.2]} 3. exd5 {[%clk 0:02:59.9]} 3... Qxd5 {[%clk 0:02:58.1]} 4.
d4 {[%clk 0:03:00.3]} 4... Nc6 {[%clk 0:02:52.1]} 5. Nf3 {[%clk 0:02:59.7]} 5...
Bg4 {[%clk 0:02:51.8]} 6. Be2 {[%clk 0:02:58.1]} 6... Nf6 {[%clk 0:02:51.3]} 7.
O-O {[%clk 0:02:55.6]} 7... cxd4 {[%clk 0:02:51]} 8. cxd4 {[%clk 0:02:54.7]}
8... e6 {[%clk 0:02:46.9]} 9. Nc3 {[%clk 0:02:54.3]} 9... Qd8 {[%clk 0:02:47.1]}
10. Be3 {[%clk 0:02:36.8]} 10... Be7 {[%clk 0:02:46.9]} 11. Qb3 {[%clk
0:02:33.1]} 11... Qd7 {[%clk 0:02:28.3]} 12. Ne5 {[%clk 0:02:06.5]} 12... Nxd4
{[%clk 0:01:44.5]} 13. Nxd7 {[%clk 0:01:34.6]} 13... Nxb3 {[%clk 0:01:42.7]} 14.
Nxf6+ {[%clk 0:01:30.4]} 14... Bxf6 {[%clk 0:01:42.8]} 15. axb3 {[%clk
0:01:15.5]} 15... Bxe2 {[%clk 0:01:23.1]} 16. Nxe2 {[%clk 0:01:14]} 16... Bxb2
{[%clk 0:01:23.7]} 17. Rxa7 {[%clk 0:01:09.5]} 17... Rxa7 {[%clk 0:01:22.6]} 18.
Bxa7 {[%clk 0:01:08.6]} 18... O-O {[%clk 0:01:23.2]} 19. Rb1 {[%clk 0:01:04.2]}
19... Be5 {[%clk 0:01:21.8]} 20. Bd4 {[%clk 0:01:00]} 20... Bd6 {[%clk
0:01:17.6]} 21. Kf1 {[%clk 0:00:46.2]} 21... Rc8 {[%clk 0:01:11.1]} 22. Rc1
{[%clk 0:00:39.1]} 22... Rd8 {[%clk 0:01:02.3]} 23. g3 {[%clk 0:00:36.6]} 23...
Kf8 {[%clk 0:00:58.6]} 24. Bc5 {[%clk 0:00:32.6]} 24... Bxc5 {[%clk 0:00:49.9]}
25. Rxc5 {[%clk 0:00:32.4]} 25... Rd7 {[%clk 0:00:50.6]} 26. Ke1 {[%clk
0:00:27.8]} 26... Ke7 {[%clk 0:00:50.5]} 27. Nc3 {[%clk 0:00:24.5]} 27... Kd6
{[%clk 0:00:42.1]} 28. Rc4 {[%clk 0:00:24]} 28... e5 {[%clk 0:00:39.8]} 29. Ke2
{[%clk 0:00:22.1]} 29... Ke6 {[%clk 0:00:39]} 30. Ne4 {[%clk 0:00:20.4]} 30...
Kd5 {[%clk 0:00:33.4]} 31. f3 {[%clk 0:00:15.2]} 31... f5 {[%clk 0:00:32.6]} 32.
Nc3+ {[%clk 0:00:12.8]} 32... Ke6 {[%clk 0:00:32.5]} 33. Rb4 {[%clk 0:00:12.7]}
33... Rc7 {[%clk 0:00:31.4]} 34. Kd2 {[%clk 0:00:11.7]} 34... Rd7+ {[%clk
0:00:30.8]} 35. Kc2 {[%clk 0:00:11.8]} 35... Rc7 {[%clk 0:00:30.4]} 36. Rb6+
{[%clk 0:00:11.6]} 36... Ke7 {[%clk 0:00:30.1]} 37. Kd2 {[%clk 0:00:10.9]} 37...
Kf7 {[%clk 0:00:29.9]} 38. Nb5 {[%clk 0:00:07.7]} 38... Rd7+ {[%clk 0:00:30]}
39. Nd6+ {[%clk 0:00:07.2]} 39... Ke6 {[%clk 0:00:29.5]} 40. Ke3 {[%clk
0:00:06]} 40... Rxd6 {[%clk 0:00:29.5]} 41. Rxb7 {[%clk 0:00:05.7]} 41... g5
{[%clk 0:00:28.2]} 42. Rxh7 {[%clk 0:00:05.5]} 42... f4+ {[%clk 0:00:28.4]} 43.
gxf4 {[%clk 0:00:04.8]} 43... gxf4+ {[%clk 0:00:28.8]} 44. Ke2 {[%clk
0:00:04.5]} 44... Kd5 {[%clk 0:00:28.6]} 45. Rh5 {[%clk 0:00:04.2]} 45... Kd4
{[%clk 0:00:28.4]} 46. Rf5 {[%clk 0:00:04]} 46... Ra6 {[%clk 0:00:28.1]} 47. Rf7
{[%clk 0:00:03.7]} 47... Ra2+ {[%clk 0:00:28.4]} 48. Kd1 {[%clk 0:00:03.2]}
48... Ke3 {[%clk 0:00:28.1]} 49. Rd7 {[%clk 0:00:02.7]} 49... Kxf3 {[%clk
0:00:27.4]} 50. Rd5 {[%clk 0:00:02.8]} 50... e4 {[%clk 0:00:27.3]} 51. Rh5
{[%clk 0:00:02.2]} 51... e3 {[%clk 0:00:27.2]} 52. Re5 {[%clk 0:00:02]} 52...
e2+ {[%clk 0:00:25.9]} 53. Ke1 {[%clk 0:00:02.1]} 53... Ra1+ {[%clk 0:00:25.6]}
54. Kd2 {[%clk 0:00:02]} 54... Rd1+ {[%clk 0:00:26]} 55. Kc2 {[%clk 0:00:01.3]}
55... e1=Q {[%clk 0:00:26.3]} 0-1

[Event "*** SCC Grand Prix: Titled Tuesday Blitz"]
[Site "Chess.com"]
[Date "2020.08.25"]
[Round "10"]
[White "teacher4chess"]
[Black "mfwagnerpeixoto"]
[Result "0-1"]
[WhiteElo "2029"]
[BlackElo "2223"]
[TimeControl "180+1"]
[EndTime "12:00:30 PDT"]
[Termination "mfwagnerpeixoto won by checkmate"]

1. d4 {[%clk 0:03:00.3]} 1... Nf6 {[%clk 0:02:59]} 2. c4 {[%clk 0:02:59.9]} 2...
g6 {[%clk 0:02:53.8]} 3. Nc3 {[%clk 0:02:59.2]} 3... d5 {[%clk 0:02:54.3]} 4.
Nf3 {[%clk 0:02:50.4]} 4... Bg7 {[%clk 0:02:52.2]} 5. Bf4 {[%clk 0:02:48.8]}
5... O-O {[%clk 0:02:51.1]} 6. e3 {[%clk 0:02:48.7]} 6... c5 {[%clk 0:02:48.8]}
7. dxc5 {[%clk 0:02:43.6]} 7... Qa5 {[%clk 0:02:47.9]} 8. Qa4 {[%clk 0:02:11.3]}
8... Qxa4 {[%clk 0:02:40.5]} 9. Nxa4 {[%clk 0:02:10.5]} 9... Ne4 {[%clk
0:02:33]} 10. cxd5 {[%clk 0:01:59.8]} 10... Bd7 {[%clk 0:02:29.6]} 11. Bd3
{[%clk 0:01:54.1]} 11... Bxa4 {[%clk 0:02:16.3]} 12. Bxe4 {[%clk 0:01:53.7]}
12... Nd7 {[%clk 0:02:05.7]} 13. Rc1 {[%clk 0:01:24.7]} 13... Bxb2 {[%clk
0:02:02]} 14. Rb1 {[%clk 0:01:19.7]} 14... Bc3+ {[%clk 0:02:00.6]} 15. Ke2
{[%clk 0:01:19.2]} 15... Nxc5 {[%clk 0:02:00.6]} 16. Bd3 {[%clk 0:01:11.6]}
16... b6 {[%clk 0:01:18.2]} 17. Rhc1 {[%clk 0:01:03.3]} 17... Bf6 {[%clk
0:01:17.3]} 18. Bb5 {[%clk 0:00:59.8]} 18... Bxb5+ {[%clk 0:01:07.7]} 19. Rxb5
{[%clk 0:00:59.1]} 19... Ne4 {[%clk 0:01:08.1]} 20. Be5 {[%clk 0:00:51.6]} 20...
Rfd8 {[%clk 0:00:55.1]} 21. Rc7 {[%clk 0:00:41.3]} 21... Nd6 {[%clk 0:00:44.1]}
22. Bxd6 {[%clk 0:00:29.2]} 22... Rxd6 {[%clk 0:00:45]} 23. e4 {[%clk
0:00:26.3]} 23... e5 {[%clk 0:00:26.6]} 24. dxe6 {[%clk 0:00:19.4]} 24... Rxe6
{[%clk 0:00:26.3]} 25. Ke3 {[%clk 0:00:10.3]} 25... a6 {[%clk 0:00:26.3]} 26.
Rd5 {[%clk 0:00:09.1]} 26... Rae8 {[%clk 0:00:25.3]} 27. e5 {[%clk 0:00:07.2]}
27... Bxe5 {[%clk 0:00:21.8]} 28. Nxe5 {[%clk 0:00:06.4]} 28... Rxe5+ {[%clk
0:00:22]} 29. Rxe5 {[%clk 0:00:06.4]} 29... Rxe5+ {[%clk 0:00:22.9]} 30. Kd4
{[%clk 0:00:05.5]} 30... Ra5 {[%clk 0:00:22.2]} 31. Rb7 {[%clk 0:00:04.2]} 31...
Rxa2 {[%clk 0:00:19.9]} 32. Rxb6 {[%clk 0:00:04.7]} 32... Rxf2 {[%clk
0:00:19.5]} 33. Rxa6 {[%clk 0:00:04.5]} 33... Rxg2 {[%clk 0:00:19.5]} 34. h4
{[%clk 0:00:04.1]} 34... Rg4+ {[%clk 0:00:19.2]} 35. Ke5 {[%clk 0:00:03.9]}
35... Kg7 {[%clk 0:00:18.9]} 36. h5 {[%clk 0:00:01.8]} 36... Rg5+ {[%clk
0:00:18.9]} 37. Kf4 {[%clk 0:00:01.8]} 37... Rxh5 {[%clk 0:00:19.8]} 38. Ra7
{[%clk 0:00:01.3]} 38... Rf5+ {[%clk 0:00:19.5]} 39. Kg4 {[%clk 0:00:01.5]}
39... h5+ {[%clk 0:00:20]} 40. Kg3 {[%clk 0:00:02]} 40... Kh6 {[%clk 0:00:19.9]}
41. Rxf7 {[%clk 0:00:02]} 41... Rxf7 {[%clk 0:00:19.1]} 42. Kh4 {[%clk
0:00:01.7]} 42... g5+ {[%clk 0:00:18.6]} 43. Kg3 {[%clk 0:00:02.2]} 43... h4+
{[%clk 0:00:18.1]} 44. Kg2 {[%clk 0:00:02.3]} 44... Kh5 {[%clk 0:00:18.1]} 45.
Kh2 {[%clk 0:00:02.5]} 45... Rf2+ {[%clk 0:00:17.7]} 46. Kg1 {[%clk 0:00:02.6]}
46... Ra2 {[%clk 0:00:18.6]} 47. Kh1 {[%clk 0:00:02]} 47... Kg4 {[%clk
0:00:18.7]} 48. Kg1 {[%clk 0:00:01.6]} 48... Kf3 {[%clk 0:00:18.6]} 49. Kf1
{[%clk 0:00:01.2]} 49... Ra1# {[%clk 0:00:17.9]} 0-1

[Event "*** SCC Grand Prix: Titled Tuesday Blitz"]
[Site "Chess.com"]
[Date "2020.08.25"]
[Round "10"]
[White "swimmerchess"]
[Black "hansen"]
[Result "1/2-1/2"]
[WhiteElo "2849"]
[BlackElo "2950"]
[TimeControl "180+1"]
[EndTime "12:00:35 PDT"]
[Termination "Game drawn - insufficient material"]

1. e4 {[%clk 0:03:00.9]} 1... c5 {[%clk 0:02:59.9]} 2. Nf3 {[%clk 0:03:01.1]}
2... e6 {[%clk 0:03:00]} 3. d4 {[%clk 0:03:01.3]} 3... cxd4 {[%clk 0:03:00.9]}
4. Nxd4 {[%clk 0:03:02.2]} 4... a6 {[%clk 0:02:49.6]} 5. Nc3 {[%clk 0:03:00.4]}
5... Qc7 {[%clk 0:02:49.4]} 6. Bd3 {[%clk 0:03:00.5]} 6... Nf6 {[%clk
0:02:49.7]} 7. O-O {[%clk 0:03:00.5]} 7... d6 {[%clk 0:02:38.4]} 8. Kh1 {[%clk
0:02:58.4]} 8... h5 {[%clk 0:02:37.9]} 9. h3 {[%clk 0:02:53.7]} 9... b5 {[%clk
0:02:33.9]} 10. a4 {[%clk 0:02:44.9]} 10... b4 {[%clk 0:02:33.5]} 11. Na2 {[%clk
0:02:43.5]} 11... Bb7 {[%clk 0:02:34.1]} 12. Qe2 {[%clk 0:02:42.6]} 12... Nbd7
{[%clk 0:02:14.1]} 13. Nxb4 {[%clk 0:02:39.2]} 13... d5 {[%clk 0:02:00.6]} 14.
exd5 {[%clk 0:02:28.2]} 14... Bxb4 {[%clk 0:01:59.6]} 15. dxe6 {[%clk
0:02:28.4]} 15... Nc5 {[%clk 0:00:58.9]} 16. exf7+ {[%clk 0:02:21]} 16... Kxf7
{[%clk 0:00:50.6]} 17. Bc4+ {[%clk 0:02:21.1]} 17... Kf8 {[%clk 0:00:50.3]} 18.
c3 {[%clk 0:02:21]} 18... Ng4 {[%clk 0:00:39.4]} 19. f4 {[%clk 0:02:12.3]} 19...
Re8 {[%clk 0:00:37.6]} 20. Qc2 {[%clk 0:02:07.1]} 20... Ne4 {[%clk 0:00:17.5]}
21. cxb4 {[%clk 0:01:36.3]} 21... Qb6 {[%clk 0:00:16.7]} 22. Ne2 {[%clk
0:00:33.5]} 22... Nef2+ {[%clk 0:00:12.4]} 23. Rxf2 {[%clk 0:00:33.6]} 23...
Qxf2 {[%clk 0:00:12.3]} 24. Qf5+ {[%clk 0:00:30.5]} 24... Nf6 {[%clk 0:00:12.2]}
25. Qc5+ {[%clk 0:00:24.1]} 25... Qxc5 {[%clk 0:00:12.8]} 26. bxc5 {[%clk
0:00:25]} 26... Ne4 {[%clk 0:00:08.3]} 27. b4 {[%clk 0:00:23.3]} 27... h4 {[%clk
0:00:08.6]} 28. Bb2 {[%clk 0:00:17.5]} 28... Ng3+ {[%clk 0:00:02.9]} 29. Nxg3
{[%clk 0:00:17]} 29... hxg3 {[%clk 0:00:03.5]} 30. Be5 {[%clk 0:00:15.1]} 30...
Rxh3+ {[%clk 0:00:02.8]} 31. Kg1 {[%clk 0:00:15.7]} 31... Rh2 {[%clk 0:00:03.4]}
32. Bd6+ {[%clk 0:00:15.9]} 32... Re7 {[%clk 0:00:02.9]} 33. Bxe7+ {[%clk
0:00:16.1]} 33... Kxe7 {[%clk 0:00:03.2]} 34. Re1+ {[%clk 0:00:17]} 34... Kf6
{[%clk 0:00:03.1]} 35. c6 {[%clk 0:00:14.1]} 35... Bc8 {[%clk 0:00:01.6]} 36.
Re3 {[%clk 0:00:14.3]} 36... Rh4 {[%clk 0:00:01.6]} 37. Rxg3 {[%clk 0:00:13.5]}
37... Rxf4 {[%clk 0:00:02.3]} 38. Rf3 {[%clk 0:00:14.2]} 38... Rxf3 {[%clk
0:00:03]} 39. gxf3 {[%clk 0:00:15.1]} 39... Ke5 {[%clk 0:00:03.9]} 40. b5 {[%clk
0:00:15.6]} 40... axb5 {[%clk 0:00:04.8]} 41. axb5 {[%clk 0:00:16.5]} 41... Kd6
{[%clk 0:00:05.4]} 42. Kf2 {[%clk 0:00:16.6]} 42... Kc5 {[%clk 0:00:05.6]} 43.
Bd3 {[%clk 0:00:17.2]} 43... g5 {[%clk 0:00:06.2]} 44. Ke3 {[%clk 0:00:17.5]}
44... Be6 {[%clk 0:00:06.5]} 45. Ke4 {[%clk 0:00:17.2]} 45... Bd5+ {[%clk
0:00:07.1]} 46. Ke5 {[%clk 0:00:16.5]} 46... Bxf3 {[%clk 0:00:07.6]} 47. Be4
{[%clk 0:00:08.6]} 47... Bg4 {[%clk 0:00:06.9]} 48. Bf5 {[%clk 0:00:02.9]} 48...
Bf3 {[%clk 0:00:07.2]} 49. Be4 {[%clk 0:00:03.4]} 49... Bg4 {[%clk 0:00:07.4]}
50. Kf6 {[%clk 0:00:02.6]} 50... Kxb5 {[%clk 0:00:07]} 51. Kxg5 {[%clk
0:00:03.2]} 51... Bc8 {[%clk 0:00:07.3]} 52. Kf6 {[%clk 0:00:03.7]} 52... Kb6
{[%clk 0:00:07.9]} 53. Ke7 {[%clk 0:00:04.1]} 53... Kc7 {[%clk 0:00:08.4]} 54.
Bd5 {[%clk 0:00:03.8]} 54... Ba6 {[%clk 0:00:09]} 55. Be4 {[%clk 0:00:04.1]}
55... Bb5 {[%clk 0:00:09.6]} 56. Bd5 {[%clk 0:00:04.8]} 56... Ba4 {[%clk
0:00:10.2]} 57. Be4 {[%clk 0:00:04.5]} 57... Bxc6 {[%clk 0:00:10.7]} 1/2-1/2

[Event "*** SCC Grand Prix: Titled Tuesday Blitz"]
[Site "Chess.com"]
[Date "2020.08.25"]
[Round "10"]
[White "Guenplen"]
[Black "Matveev_Vladimir"]
[Result "1-0"]
[WhiteElo "2877"]
[BlackElo "2543"]
[TimeControl "180+1"]
[EndTime "12:00:36 PDT"]
[Termination "Guenplen won by resignation"]

1. d4 {[%clk 0:03:00.9]} 1... Nf6 {[%clk 0:02:59.8]} 2. Bf4 {[%clk 0:02:59.1]}
2... g6 {[%clk 0:02:59.2]} 3. Nc3 {[%clk 0:02:58.1]} 3... d6 {[%clk 0:02:58.9]}
4. e4 {[%clk 0:02:57.7]} 4... Bg7 {[%clk 0:02:58.7]} 5. Qd2 {[%clk 0:02:57.9]}
5... h6 {[%clk 0:02:58.3]} 6. f3 {[%clk 0:02:56]} 6... Nc6 {[%clk 0:02:56.1]} 7.
d5 {[%clk 0:02:55.8]} 7... Ne5 {[%clk 0:02:55.5]} 8. Nge2 {[%clk 0:02:40.7]}
8... g5 {[%clk 0:02:50.1]} 9. Bxe5 {[%clk 0:02:37.7]} 9... dxe5 {[%clk
0:02:49.9]} 10. Ng3 {[%clk 0:02:38.6]} 10... e6 {[%clk 0:02:46.7]} 11. O-O-O
{[%clk 0:02:35]} 11... a6 {[%clk 0:02:40.5]} 12. Bc4 {[%clk 0:02:32.7]} 12... b5
{[%clk 0:02:38.1]} 13. Bb3 {[%clk 0:02:32.7]} 13... b4 {[%clk 0:02:23.9]} 14.
Na4 {[%clk 0:02:32.2]} 14... exd5 {[%clk 0:02:22.1]} 15. exd5 {[%clk 0:02:25.8]}
15... O-O {[%clk 0:02:20]} 16. Nc5 {[%clk 0:02:21.2]} 16... a5 {[%clk
0:02:17.6]} 17. d6 {[%clk 0:02:18.8]} 17... cxd6 {[%clk 0:02:00]} 18. Qxd6
{[%clk 0:02:19.7]} 18... Qxd6 {[%clk 0:01:56.1]} 19. Rxd6 {[%clk 0:02:20.6]}
19... Ra7 {[%clk 0:01:43.9]} 20. Rhd1 {[%clk 0:02:10.1]} 20... Rc7 {[%clk
0:01:43.3]} 21. Nge4 {[%clk 0:02:07.2]} 21... Nxe4 {[%clk 0:01:42.2]} 22. Nxe4
{[%clk 0:02:08.1]} 22... Kh8 {[%clk 0:01:17.4]} 23. g4 {[%clk 0:01:34.9]} 23...
f5 {[%clk 0:01:07.9]} 24. gxf5 {[%clk 0:01:35.8]} 24... Bxf5 {[%clk 0:01:08.6]}
25. Be6 {[%clk 0:01:20.6]} 25... Bh7 {[%clk 0:00:59.9]} 26. Bg4 {[%clk
0:01:16.2]} 26... Bg8 {[%clk 0:00:56.7]} 27. Kb1 {[%clk 0:01:02.8]} 27... a4
{[%clk 0:00:44.2]} 28. b3 {[%clk 0:01:02.3]} 28... axb3 {[%clk 0:00:32.6]} 29.
axb3 {[%clk 0:01:03.2]} 29... Rb8 {[%clk 0:00:30.2]} 30. Rd8 {[%clk 0:01:00.6]}
30... Rxd8 {[%clk 0:00:12.3]} 31. Rxd8 {[%clk 0:01:01.5]} 31... Re7 {[%clk
0:00:05.8]} 32. Rb8 {[%clk 0:00:55.2]} 32... Kh7 {[%clk 0:00:03.9]} 33. Bf5+
{[%clk 0:00:55.2]} 33... Kh8 {[%clk 0:00:04.1]} 34. Rxb4 {[%clk 0:00:50.5]}
34... Bf8 {[%clk 0:00:04.3]} 35. Rb6 {[%clk 0:00:46]} 35... Rf7 {[%clk
0:00:02.6]} 36. Bg4 {[%clk 0:00:40.8]} 36... Rf4 {[%clk 0:00:02.9]} 37. Rb8
{[%clk 0:00:27.1]} 37... Kg7 {[%clk 0:00:02.6]} 38. Rb7+ {[%clk 0:00:24.6]}
38... Kh8 {[%clk 0:00:02.8]} 39. Rd7 {[%clk 0:00:16.2]} 39... Bf7 {[%clk
0:00:02]} 40. c4 {[%clk 0:00:04.5]} 40... Kg8 {[%clk 0:00:02.4]} 41. h3 {[%clk
0:00:03.9]} 41... h5 {[%clk 0:00:03]} 42. Rxf7 {[%clk 0:00:04.1]} 42... Kxf7
{[%clk 0:00:02.9]} 43. Bxh5+ {[%clk 0:00:04.5]} 43... Kg8 {[%clk 0:00:03.8]} 44.
Bg4 {[%clk 0:00:05.1]} 44... Bb4 {[%clk 0:00:04.2]} 45. Nxg5 {[%clk 0:00:04.9]}
45... e4 {[%clk 0:00:04.6]} 46. Nxe4 {[%clk 0:00:05]} 46... Rf8 {[%clk
0:00:05.5]} 47. Kc2 {[%clk 0:00:05.2]} 47... Ra8 {[%clk 0:00:06.4]} 48. c5
{[%clk 0:00:05.3]} 48... Kg7 {[%clk 0:00:07.3]} 49. Kd3 {[%clk 0:00:05.6]} 49...
Rc8 {[%clk 0:00:08.2]} 50. Kc4 {[%clk 0:00:06.1]} 50... Rd8 {[%clk 0:00:09.1]}
51. Kxb4 {[%clk 0:00:06]} 51... Rd4+ {[%clk 0:00:10]} 52. Kb5 {[%clk 0:00:06.3]}
52... Rd1 {[%clk 0:00:10.9]} 53. c6 {[%clk 0:00:06.7]} 53... Rb1 {[%clk
0:00:11.8]} 54. b4 {[%clk 0:00:07.1]} 54... Rb3 {[%clk 0:00:12.7]} 55. Nc5
{[%clk 0:00:07.3]} 55... Rb1 {[%clk 0:00:13.6]} 56. c7 {[%clk 0:00:07.6]} 56...
Rb3 {[%clk 0:00:14.5]} 57. c8=Q {[%clk 0:00:07.9]} 57... Rb1 {[%clk 0:00:15.4]}
1-0